fUSD/lending_fUSD_20240503
["ID","MTS","AMOUNT","RATE_DAILY","PERIOD"]
[325376704,1714779041079,-619.8066344,0.00036975,2]
[325376705,1714779041088,-5698.7779453,0.00036975,2]
[325376706,1714779041097,-40789.5734786,0.00036975,2]
[325376707,1714779041106,-3075.1759623,0.00036975,2]
[325376708,1714779041115,-1239.7750984,0.00036975,2]
[325376709,1714779041126,-75174.70208842,0.00037,10]
[325376710,1714779041175,-6339.3,0.00037,10]
[325376711,1714779041187,-16275.51606301,0.00037,10]
[325376712,1714779041199,-4020.97029364,0.00037,10]
[325376713,1714779041210,-577.69928284,0.00037,10]
[325376714,1714779042124,-10000.0,0.00017481,2]
[325376715,1714779042136,-5000.0,0.00037,10]
[325376716,1714779042714,-509.37,0.00027397,10]
[325376717,1714779042724,-1707.86148813,0.000289,2]
[325376743,1714779043434,-687.00071187,0.000289,2]
[325376744,1714779043444,-2394.86221,0.000339,2]
[325376746,1714779043454,-3994.54506327,0.00037,10]
[325376747,1714779043466,-113454.26511741,0.00037,10]
[325376748,1714779043824,-25798.04371536,0.00037,10]
[325376749,1714779043839,-424538.86803115,0.00037,10]
[325376750,1714779043857,-591.65,0.00037,10]
[325376751,1714779043923,-1334.62389622,0.00010487,2]
[325376752,1714779043933,-41.56593378,0.00036515,2]
[325376753,1714779043945,-1003.25406622,0.00036515,2]
[325376754,1714779043955,-1082.20809785,0.00037,10]
[325376755,1714779043998,-649336.1955953,0.00037,10]
[325376756,1714779044009,-174.6,0.00037,2]
[325376757,1714779044018,-151.0,0.00037,7]
[325376758,1714779044028,-161.43,0.00037,7]
[325376759,1714779044040,-151.0,0.00037,7]
[325376760,1714779044052,-162.563616,0.00037,7]
[325376761,1714779044063,-266.425442,0.00037,7]
[325376762,1714779044072,-151.0,0.00037,7]
[325376763,1714779044083,-266.425442,0.00037,7]
[325376764,1714779044093,-151.0,0.00037,7]
[325376765,1714779044102,-152.02631,0.00037,7]
[325376766,1714779044112,-151.0,0.00037,7]
[325376767,1714779044123,-152.02631,0.00037,7]
[325376768,1714779044133,-264.246676,0.00037,7]
[325376769,1714779044143,-151.0,0.00037,7]
[325376770,1714779044153,-264.246676,0.00037,7]
[325376771,1714779044163,-151.0,0.00037,7]
[325376772,1714779044172,-151.0,0.00037,7]
[325376773,1714779044182,-158.881587,0.00037,7]
[325376774,1714779044192,-152.005832,0.00037,7]
[325376775,1714779044202,-161.43,0.00037,7]
[325376776,1714779044213,-151.0,0.00037,7]
[325376777,1714779044223,-151.0,0.00037,7]
[325376778,1714779044234,-151.0,0.00037,7]
[325376779,1714779044243,-151.0,0.00037,7]
[325376780,1714779044253,-151.0,0.00037,7]
[325376781,1714779044265,-151.0,0.00037,7]
[325376782,1714779044275,-151.0,0.00037,7]
[325376783,1714779044284,-151.0,0.00037,7]
[325376784,1714779044294,-151.0,0.00037,7]
[325376785,1714779044303,-151.0,0.00037,7]
[325376786,1714779044313,-151.0,0.00037,7]
[325376787,1714779044323,-315.750027,0.00037,7]
[325376788,1714779044332,-315.750027,0.00037,7]
[325376789,1714779044342,-152.32962,0.00037,7]
[325376790,1714779044351,-151.0,0.00037,7]
[325376791,1714779044361,-151.0,0.00037,7]
[325376792,1714779044371,-934.940202,0.00037,7]
[325376793,1714779044381,-934.940202,0.00037,7]
[325376794,1714779044391,-151.0,0.00037,7]
[325376795,1714779044401,-257.713477,0.00037,7]
[325376796,1714779044411,-735.687715,0.00037,7]
[325376797,1714779044420,-151.0,0.00037,7]
[325376798,1714779044430,-151.0,0.00037,7]
[325376799,1714779044440,-168.69022,0.00037,7]
[325376800,1714779044450,-151.0,0.00037,7]
[325376801,1714779044460,-372.082307,0.00037,7]
[325376802,1714779044470,-372.082307,0.00037,7]
[325376803,1714779044481,-267.855112,0.00037,7]
[325376804,1714779044491,-267.855112,0.00037,7]
[325376805,1714779044501,-314.91665,0.00037,7]
[325376806,1714779044513,-151.0,0.00037,7]
[325376807,1714779044522,-314.91665,0.00037,7]
[325376808,1714779044532,-151.0,0.00037,7]
[325376809,1714779044542,-151.0,0.00037,7]
[325376810,1714779044552,-151.0,0.00037,7]
[325376811,1714779044561,-213.160887,0.00037,7]
[325376812,1714779044571,-213.160887,0.00037,7]
[325376813,1714779044581,-207.243377,0.00037,7]
[325376814,1714779044591,-207.243377,0.00037,7]
[325376815,1714779044601,-176.959784,0.00037,7]
[325376816,1714779044611,-991.799011,0.00037,7]
[325376817,1714779044620,-176.959784,0.00037,7]
[325376818,1714779044631,-991.799011,0.00037,7]
[325376820,1714779044640,-151.0,0.00037,7]
[325376822,1714779044650,-247.024713,0.00037,7]
[325376824,1714779044660,-247.024713,0.00037,7]
[325376825,1714779044670,-620.346747,0.00037,7]
[325376826,1714779044679,-620.346747,0.00037,7]
[325376827,1714779044689,-280.64492,0.00037,7]
[325376828,1714779044698,-280.64492,0.00037,7]
[325376829,1714779044708,-169.404949,0.00037,7]
[325376830,1714779044718,-169.404949,0.00037,7]
[325376831,1714779044727,-659.492323,0.00037,7]
[325376832,1714779044737,-659.492323,0.00037,7]
[325376833,1714779044747,-151.0,0.00037,7]
[325376834,1714779044758,-957.030972,0.00037,7]
[325376835,1714779044768,-957.030972,0.00037,7]
[325376836,1714779044779,-151.0,0.00037,7]
[325376837,1714779044788,-151.0,0.00037,7]
[325376838,1714779044798,-234.954028,0.00037,7]
[325376839,1714779044813,-234.954028,0.00037,7]
[325376840,1714779044823,-689.3726393,0.00037,2]
[325376841,1714779044833,-608.208369,0.00037,7]
[325376842,1714779044844,-151.0,0.00037,7]
[325376843,1714779044854,-2000.0,0.00037,2]
[325376844,1714779044864,-608.208369,0.00037,7]
[325376845,1714779044874,-1048.558297,0.00037,7]
[325376846,1714779044884,-1048.558297,0.00037,7]
[325376847,1714779044894,-486.9163581,0.00037,2]
[325376848,1714779044904,-289.0,0.00037,2]
[325376849,1714779044915,-155.33315921,0.00037164,7]
[325376850,1714779044925,-150.35740287,0.00037189,7]
[325376851,1714779044935,-1200.0,0.00037259,10]
[325376852,1714779044945,-150.35740287,0.00037407,7]
[325376853,1714779044955,-150.0,0.00037408,2]
[325376854,1714779044965,-17201.67950343,0.00037409,2]
[325376855,1714779044975,-12616.9131787,0.000375,3]
[325376856,1714779044986,-155.0,0.000375,3]
[325376857,1714779044998,-500.0,0.00037533,10]
[325376858,1714779045010,-1000.0,0.0003755,7]
[325376859,1714779045020,-150.0,0.00037635,2]
[325376860,1714779045031,-1200.0,0.00037807,10]
[325376861,1714779045044,-500.0,0.00037807,10]
[325376862,1714779045055,-500.0,0.00037807,10]
[325376863,1714779045065,-2900.0,0.00037807,10]
[325376864,1714779045075,-211.0,0.0003781,2]
[325376865,1714779045085,-700.01687515,0.00037849,2]
[325376866,1714779045095,-347.62964838,0.00037849,2]
[325376867,1714779045104,-1000.0,0.0003785,2]
[325376868,1714779045116,-161.53242035,0.0003788,7]
[325376869,1714779045127,-1000.0,0.0003795,2]
[325376870,1714779045137,-5034.9493372,0.00038,2]
[325376871,1714779045147,-8246.5138401,0.00038,2]
[325376872,1714779045157,-950.0,0.00038,3]
[325376873,1714779045167,-3550.0,0.00038,30]
[325376874,1714779045177,-930.48,0.00038082,2]
[325376875,1714779045187,-269429.50836604,0.000381,13]
[325376876,1714779045236,-664079.04489542,0.000381,13]
[325376880,1714779047712,-519.4081,0.00010588,2]
[325376881,1714779047725,-369.90614107,0.00010588,2]
[325376882,1714779047738,-63734.709052,0.00010588,2]
[325376913,1714779933541,500.0,9.941e-05,2]
[325376914,1714779962461,4248.42,9.941e-05,2]
[325376916,1714779996074,1675.05,9.941e-05,2]
[325376917,1714780009764,1472.9954589,9.941e-05,2]
[325376918,1714780010139,366.13828428,9.941e-05,2]
[325376923,1714780025719,1472.9954589,9.941e-05,2]
[325376924,1714780026039,366.13828428,9.941e-05,2]
[325376925,1714780032347,155.0,9.941e-05,2]
[325376926,1714780040032,493.33,9.838e-05,2]
[325376927,1714780042138,1472.9954589,9.941e-05,2]
[325376928,1714780042185,447.35736664,9.941e-05,2]
[325376929,1714780045208,143014.40436823,9.941e-05,2]
[325376930,1714780050987,-284.38773604,9.941e-05,2]
[325376931,1714780052613,-249.18539804,9.941e-05,2]
[325376932,1714780053100,-232.53670798,9.941e-05,2]
[325376933,1714780053848,-153.11774356,9.941e-05,2]
[325376934,1714780055888,-150.0,9.941e-05,2]
[325376935,1714780056351,-150.0,9.941e-05,2]
[325376936,1714780057165,-150.0,9.941e-05,2]
[325376937,1714780057617,-150.0,9.941e-05,2]
[325376938,1714780059324,-150.0,9.941e-05,2]
[325376939,1714780059750,-150.0,9.941e-05,2]
[325376940,1714780061953,-150.0,9.941e-05,2]
[325376941,1714780062486,-150.0,9.941e-05,2]
[325376942,1714780063047,-150.0,9.941e-05,2]
[325376943,1714780063540,-150.0,9.941e-05,2]
[325376944,1714780064819,-150.0,9.941e-05,2]
[325376945,1714780066080,-150.0,9.941e-05,2]
[325376946,1714780066569,-150.0,9.941e-05,2]
[325376947,1714780067317,-150.0,9.941e-05,2]
[325376948,1714780067775,-150.0,9.941e-05,2]
[325376949,1714780068278,-150.0,9.941e-05,2]
[325376950,1714780069032,-150.0,9.941e-05,2]
[325376951,1714780069758,-150.0,8.947e-05,2]
[325376952,1714780073715,-150.0,8.947e-05,2]
[325376953,1714780074268,-150.0,9.941e-05,2]
[325376954,1714780074762,-150.0,9.941e-05,2]
[325376955,1714780075279,-150.0,9.941e-05,2]
[325376956,1714780076316,-150.0,9.941e-05,2]
[325376957,1714780077513,-150.0,9.941e-05,2]
[325376958,1714780077582,150.0,7.456e-05,2]
[325376959,1714780077602,150.0,7.456e-05,2]
[325376960,1714780077622,150.0,7.456e-05,2]
[325376961,1714780077642,150.0,7.456e-05,2]
[325376962,1714780079699,-150.0,9.941e-05,2]
[325376963,1714780081147,-150.0,9.941e-05,2]
[325376964,1714780083447,-150.0,9.94e-05,2]
[325376965,1714780086471,-150.0,9.94e-05,2]
[325376966,1714780086956,-150.0,9.941e-05,2]
[325376967,1714780089229,-150.0,9.941e-05,2]
[325376968,1714780089820,-150.0,9.941e-05,2]
[325376969,1714780091497,-150.0,9.941e-05,2]
[325376970,1714780092743,-150.0,9.941e-05,2]
[325376971,1714780094173,-150.0,9.941e-05,2]
[325376972,1714780095192,-150.0,9.941e-05,2]
[325376973,1714780097099,-150.0,9.941e-05,2]
[325376974,1714780097524,1650.0,7.456e-05,2]
[325376975,1714780108342,-150.0,9.941e-05,2]
[325376976,1714780111130,-150.0,9.941e-05,2]
[325376977,1714780111872,-150.0,9.941e-05,2]
[325377012,1714780231489,-2522.64994428,9.941e-05,2]
[325377013,1714780231501,-1030.80826547,9.941e-05,2]
[325377014,1714780231514,-495.39562271,9.941e-05,2]
[325377015,1714780231525,-13443.50325055,9.941e-05,2]
[325377016,1714780231536,-3971.07024,9.941e-05,2]
[325377017,1714780231547,-5269.01689433,9.941e-05,2]
[325377018,1714780231558,-1400.0,9.941e-05,2]
[325377019,1714780231582,-1552.34468676,9.941e-05,2]
[325377020,1714780231593,-1268.0,9.941e-05,2]
[325377021,1714780231619,-339.7200004,9.941e-05,2]
[325377022,1714780231650,-4386.35969042,9.941e-05,2]
[325377023,1714780231704,-363.6,9.941e-05,2]
[325377024,1714780231717,-325.09234905,9.941e-05,2]
[325377025,1714780231761,-256.4326,9.941e-05,2]
[325377026,1714780231773,-14626.43017531,9.941e-05,2]
[325377027,1714780231785,-73090.70230838,9.941e-05,2]
[325377028,1714780231797,-6900.0,9.941e-05,2]
[325377042,1714780237491,-160753.74856936,9.941e-05,2]
[325377043,1714780237503,-12475.06058773,9.941e-05,2]
[325377044,1714780237550,-93060.6183925,9.941e-05,2]
[325377045,1714780237560,-155.0,9.941e-05,2]
[325377046,1714780237569,-155.0,9.941e-05,2]
[325377047,1714780237579,-1472.9954589,9.941e-05,2]
[325377048,1714780237588,-7506.15475185,9.941e-05,2]
[325377049,1714780237597,-867.13607682,9.941e-05,2]
[325377050,1714780237606,-155.0,9.941e-05,2]
[325377051,1714780237616,-150.0,9.941e-05,2]
[325377052,1714780237625,-150.0,9.941e-05,2]
[325377053,1714780237634,-300.0,0.0001,2]
[325377054,1714780237643,-214.57,0.00010023,2]
[325377055,1714780237653,-159.85,0.00010315,2]
[325377056,1714780237662,-6292.42,0.00010382,2]
[325377057,1714780237671,-153.9520212,0.00010487,2]
[325377058,1714780237680,-153.95202105,0.00010487,2]
[325377059,1714780237689,-153.95202105,0.00010487,2]
[325377060,1714780237698,-153.95202105,0.00010487,2]
[325377061,1714780237708,-153.95202105,0.00010487,2]
[325377062,1714780237717,-153.95202105,0.00010487,2]
[325377063,1714780237726,-499.99,0.00010487,2]
[325377064,1714780237735,-153.95202105,0.00010487,2]
[325377065,1714780237744,-153.95202105,0.00010487,2]
[325377066,1714780237753,-153.95202105,0.00010488,2]
[325377067,1714780237763,-27409.59,0.00010488,2]
[325377068,1714780237773,-153.95202105,0.00010488,2]
[325377069,1714780237782,-153.95202105,0.00010488,2]
[325377070,1714780237791,-153.95202105,0.00010488,2]
[325377071,1714780237801,-153.95202105,0.00010488,2]
[325377072,1714780237810,-153.95202105,0.00010488,2]
[325377073,1714780237820,-153.95202105,0.00010488,2]
[325377074,1714780237829,-153.95202105,0.00010488,2]
[325377075,1714780237839,-159.38767462,0.00010588,2]
[325377076,1714780237848,-1374.34488026,0.00010588,2]
[325377077,1714780237857,-4650.0,0.00010588,2]
[325377078,1714780237866,-179.73027073,0.00010588,2]
[325377079,1714780237875,-298.84757904,0.00010588,2]
[325377080,1714780237883,-547.35752792,0.00010588,2]
[325377081,1714780237892,-2357.86048009,0.00010798,2]
[325377082,1714780237901,-1245.81753836,0.00010798,2]
[325377083,1714780237910,-4409.99644017,0.00010798,2]
[325377084,1714780237919,-1347.93402706,0.00010798,2]
[325377085,1714780237928,-536.49041607,0.00010798,2]
[325377086,1714780237937,-1000.0,0.00010907,2]
[325377087,1714780237946,-210.0,0.00010934,2]
[325377088,1714780237955,-250.0,0.00010959,2]
[325377089,1714780237964,-3199.98,0.00011037,2]
[325377090,1714780237973,-214.57,0.00011276,2]
[325377091,1714780237983,-150.01,0.0001167,2]
[325377092,1714780237992,-180.78,0.00012033,2]
[325377093,1714780238001,-1000.0,0.0001227,2]
[325377094,1714780238011,-214.57,0.00012529,2]
[325377095,1714780238020,-159.15,0.00013425,2]
[325377096,1714780238030,-523.86,0.00013425,2]
[325377097,1714780238039,-302.06622569,0.000136,2]
[325377098,1714780238048,-1000.0,0.00013634,2]
[325377099,1714780238058,-1992.04,0.00013699,2]
[325377100,1714780238067,-214.57,0.00013782,2]
[325377101,1714780238077,-1036.89152846,0.00014,2]
[325377102,1714780238086,-500.0,0.00014464,2]
[325377103,1714780238095,-250.0,0.00014586,2]
[325377104,1714780238104,-200.0,0.000146,2]
[325377105,1714780238113,-158.563,0.000149,2]
[325377106,1714780238123,-1000.0,0.00014997,2]
[325377107,1714780238132,-37392.25312944,0.00015,2]
[325377108,1714780238142,-3749.0,0.00015,2]
[325377109,1714780238150,-1749.0834379,0.00015,2]
[325377110,1714780238160,-612.0,0.00015,2]
[325377111,1714780238169,-214.57,0.00015035,2]
[325377112,1714780238178,-167.03,0.00015831,2]
[325377113,1714780238187,-1000.0,0.0001636,2]
[325377114,1714780238195,-192.95073016,0.00016997,2]
[325377115,1714780238207,-1996.81788928,0.00016997,2]
[325377116,1714780238216,-377.23070273,0.00016997,2]
[325377117,1714780238225,-1026.23337975,0.00016997,2]
[325377118,1714780238234,-1243.10987892,0.00016997,2]
[325377119,1714780238243,-4269.48042187,0.00016997,2]
[325377120,1714780238252,-1295.28730934,0.00016997,2]
[325377121,1714780238261,-370.40008128,0.00016997,2]
[325377122,1714780238271,-236.99524406,0.00016997,2]
[325377123,1714780238280,-155.0,0.00016997,2]
[325377124,1714780238290,-157.41537252,0.00016997,2]
[325377125,1714780238298,-617.81945781,0.00016997,2]
[325377126,1714780238307,-177.54622384,0.00016997,2]
[325377127,1714780238317,-167.53697836,0.00016997,2]
[325377128,1714780238326,-546.11206573,0.00016997,2]
[325377129,1714780238335,-397.10083861,0.00016997,2]
[325377130,1714780238343,-782.13638794,0.00016997,2]
[325377131,1714780238356,-2181.87993644,0.00016997,2]
[325377132,1714780238365,-175.89763,0.00016997,2]
[325377133,1714780238375,-155.0,0.00016997,2]
[325377134,1714780238384,-2362.42530527,0.00016997,2]
[325377135,1714780238395,-343.70234245,0.00016997,2]
[325377136,1714780238404,-281.91054346,0.00016997,2]
[325377137,1714780238413,-270.76616248,0.0001788,2]
[325377138,1714780238425,-977.64263641,0.0001788,2]
[325377139,1714780238435,-977.6426364,0.0001788,2]
[325377140,1714780238444,-977.6426364,0.0001788,2]
[325377141,1714780238454,-450.0,0.00018,3]
[325377142,1714780238463,-500.0,0.000185,2]
[325377143,1714780238473,-4000.0,0.00019178,2]
[325377144,1714780238485,-500.0,0.00019434,2]
[325377145,1714780238494,-500.0,0.00019442,2]
[325377146,1714780238504,-500.0,0.00019451,2]
[325377147,1714780238516,-500.0,0.0001946,2]
[325377148,1714780238525,-500.0,0.00019469,2]
[325377149,1714780238535,-500.0,0.00019478,2]
[325377150,1714780238543,-500.0,0.00019486,2]
[325377151,1714780238552,-500.0,0.00019495,2]
[325377152,1714780238561,-500.0,0.00019504,2]
[325377153,1714780238570,-500.0,0.00019513,2]
[325377154,1714780238579,-500.0,0.00019522,2]
[325377155,1714780238589,-500.0,0.0001953,2]
[325377156,1714780238598,-500.0,0.00019539,2]
[325377157,1714780238607,-500.0,0.00019548,2]
[325377158,1714780238616,-500.0,0.00019557,2]
[325377159,1714780238627,-500.0,0.00019566,2]
[325377160,1714780238636,-500.0,0.00019574,2]
[325377161,1714780238646,-500.0,0.00019583,2]
[325377162,1714780238655,-500.0,0.00019592,2]
[325377163,1714780238664,-500.0,0.00019601,2]
[325377164,1714780238675,-500.0,0.0001961,2]
[325377165,1714780238684,-500.0,0.00019618,2]
[325377166,1714780238693,-500.0,0.00019627,2]
[325377167,1714780238703,-500.0,0.00019636,2]
[325377168,1714780238711,-443.55004685,0.0002,2]
[325377169,1714780238721,-155.0,0.0002,2]
[325377170,1714780238730,-293.3444835,0.0002,2]
[325377171,1714780238740,-500.0,0.0002,3]
[325377172,1714780238749,-6226.02936575,0.0002,2]
[325377173,1714780238759,-1259.16438446,0.0002,2]
[325377174,1714780238771,-5174.91787188,0.0002,2]
[325377175,1714780238780,-860.33884772,0.0002,2]
[325377176,1714780238790,-977.6426364,0.00020408,2]
[325377177,1714780238799,-270.76616248,0.0002084,2]
[325377178,1714780238809,-155.0,0.000209,2]
[325377179,1714780238818,-2212.56597326,0.00021,2]
[325377180,1714780238828,-155.36852506,0.00021072,2]
[325377181,1714780238837,-10000.0,0.00021082,2]
[325377182,1714780238849,-290.4,0.00021644,2]
[325377183,1714780238859,-164.15,0.00021644,2]
[325377184,1714780238868,-400.0,0.00021805,2]
[325377185,1714780238878,-10122.0,0.00021886,2]
[325377186,1714780238889,-2000.0,0.00021918,2]
[325377187,1714780238898,-250.0,0.00021918,2]
[325377188,1714780238907,-550.0,0.00022,3]
[325377189,1714780238917,-165.32,0.00022184,2]
[325377190,1714780238926,-542.0,0.00022791,2]
[325377191,1714780238935,-909.0,0.00022791,2]
[325377192,1714780238944,-610.0,0.00022791,2]
[325377193,1714780238953,-6457.223,0.00022791,2]
[325377194,1714780238962,-2291.0,0.00022791,2]
[325377195,1714780238971,-5899.0,0.00022791,2]
[325377196,1714780238981,-151.85743016,0.00022888,2]
[325377197,1714780238990,-154.67758882,0.00023118,2]
[325377198,1714780239000,-151.58835084,0.00023329,2]
[325377199,1714780239009,-2000.21639391,0.000234,2]
[325377200,1714780239020,-151.85743016,0.00023904,2]
[325377201,1714780239029,-977.6426364,0.00023931,2]
[325377202,1714780239038,-155.0,0.00024,2]
[325377203,1714780239047,-600.0,0.00024,3]
[325377204,1714780239057,-154.67758883,0.00024143,2]
[325377205,1714780239067,-270.76616248,0.0002429,2]
[325377206,1714780239076,-800.0,0.00024329,2]
[325377207,1714780239085,-153.77854776,0.00024422,2]
[325377208,1714780239094,-400.0,0.00024531,2]
[325377209,1714780239103,-159.15,0.00024658,2]
[325377210,1714780239112,-523.86,0.00024658,2]
[325377211,1714780239122,-155.0,0.00025,2]
[325377212,1714780239131,-5000.0,0.00025,2]
[325377213,1714780239140,-2607.3114918,0.00025,2]
[325377214,1714780239149,-749.82602733,0.00025178,2]
[325377215,1714780239159,-716.17723846,0.00025178,2]
[325377216,1714780239170,-800.0,0.00025233,2]
[325377217,1714780239180,-158.39064362,0.00025389,2]
[325377218,1714780239191,-151.85743016,0.00025758,2]
[325377219,1714780239203,-157.37668201,0.0002582,2]
[325377220,1714780239212,-650.0,0.00026,3]
[325377221,1714780239222,-151.85743016,0.00026176,2]
[325377222,1714780239237,-200.0,0.00026544,2]
[325377223,1714780239246,-150.58249624,0.0002656,2]
[325377224,1714780239256,-1862.83673623,0.00026577,2]
[325377225,1714780239266,-366.20823664,0.00026577,7]
[325377226,1714780239275,-953.38967146,0.00026577,2]
[325377227,1714780239284,-3119.56947977,0.00026577,7]
[325377228,1714780239293,-151.85743016,0.0002674,2]
[325377230,1714780239303,-10000.0,0.00026867,2]
[325377232,1714780239312,-150.32,0.0002699,2]
[325377234,1714780239322,-219.52381524,0.00027,2]
[325377236,1714780239332,-3338.71656159,0.00027,2]
[325377238,1714780239345,-157.37668201,0.00027057,2]
[325377240,1714780239363,-400.0,0.00027256,120]
[325377242,1714780239381,-3463.78,0.00027397,2]
[325377244,1714780239391,-151.14,0.00027397,2]
[325377247,1714780239400,-294.77,0.00027397,10]
[325377249,1714780239409,-977.6426364,0.00027453,2]
[325377250,1714780239418,-150.58249624,0.00027486,2]
[325377251,1714780239427,-10000.0,0.00027678,2]
[325377252,1714780239435,-20279.96066225,0.00027696,2]
[325377253,1714780239445,-215.21125045,0.00027696,2]
[325377254,1714780239455,-290.4,0.00027714,2]
[325377256,1714780239465,-270.76616248,0.00027741,2]
[325377258,1714780239474,-13578.91122462,0.00027876,2]
[325377260,1714780239483,-14084.78365076,0.00027876,2]
[325377262,1714780239494,-153.28669251,0.00027876,2]
[325377264,1714780239502,-218.22894187,0.00027876,2]
[325377266,1714780239512,-150.60329118,0.00027876,2]
[325377268,1714780239523,-151.85743016,0.00027955,2]
[325377270,1714780239532,-168.80224381,0.00027976,2]
[325377272,1714780239541,-155.0,0.00027976,2]
[325377274,1714780239551,-700255.1047929,0.00027976,2]
[325377276,1714780239560,-155.76623754,0.00027976,2]
[325377278,1714780239570,-155.0,0.00027976,2]
[325377280,1714780239579,-155.51648282,0.00027976,2]
[325377282,1714780239589,-257.03149954,0.00027976,2]
[325377284,1714780239599,-157.85541896,0.00027976,2]
[325377286,1714780239609,-289.93033318,0.00027976,2]
[325377288,1714780239619,-200.0,0.00027976,2]
[325377290,1714780239628,-191.6828176,0.00027976,2]
[325377292,1714780239637,-155.20009659,0.00027976,2]
[325377294,1714780239647,-306.95158875,0.00027976,2]
[325377296,1714780239656,-205.7728251,0.00027976,2]
[325377298,1714780239666,-155.0,0.00027976,2]
[325377301,1714780239680,-409.12808028,0.00027976,2]
[325377303,1714780239690,-155.0,0.00027976,2]
[325377305,1714780239699,-1777.97814072,0.00027976,2]
[325377307,1714780239709,-324.1129268,0.00027976,2]
[325377309,1714780239719,-259.32312542,0.00027976,2]
[325377311,1714780239728,-359.88720368,0.00027976,10]
[325377313,1714780239738,-303.76297278,0.00027976,2]
[325377315,1714780239747,-707.07547082,0.00027976,2]
[325377317,1714780239756,-204.1317369,0.00027976,2]
[325377319,1714780239766,-335.10243865,0.00027976,2]
[325377321,1714780239776,-160.58063013,0.00027976,2]
[325377323,1714780239786,-216.22293644,0.00027976,2]
[325377325,1714780239795,-162.22835708,0.00027976,2]
[325377327,1714780239805,-325.9726804,0.00027976,2]
[325377329,1714780239815,-155.0,0.00027976,2]
[325377331,1714780239824,-200.46583698,0.00027976,2]
[325377332,1714780239834,-236.72474812,0.00027976,2]
[325377333,1714780239843,-305.60617377,0.00027976,2]
[325377335,1714780239853,-155.0,0.00027976,2]
[325377337,1714780239863,-317.215551,0.00027976,2]
[325377339,1714780239872,-206.94540813,0.00027976,2]
[325377341,1714780239881,-826.72085471,0.00027976,2]
[325377343,1714780239890,-208.058967,0.00027976,2]
[325377345,1714780239899,-1224.55602433,0.00027976,2]
[325377348,1714780239909,-1352.6419707,0.00027976,2]
[325377350,1714780239919,-304.41229219,0.00027976,2]
[325377352,1714780239929,-155.0,0.00027976,2]
[325377354,1714780239938,-155.0,0.00027976,2]
[325377356,1714780239948,-626.26256473,0.00027976,2]
[325377382,1714780240275,-471.19309113,0.00027976,2]
[325377384,1714780240285,-1768.2555451,0.00027976,2]
[325377385,1714780240294,-431.93900284,0.00027976,2]
[325377387,1714780240304,-155.0,0.00027976,2]
[325377389,1714780240313,-193.04984217,0.00027976,2]
[325377391,1714780240322,-440.27172033,0.00027976,2]
[325377393,1714780240332,-404.56209638,0.00027976,2]
[325377394,1714780240342,-533.3453203,0.00027976,2]
[325377396,1714780240354,-1037.76898677,0.00027976,2]
[325377398,1714780240362,-357.22427774,0.00027976,2]
[325377400,1714780240371,-2318.31436104,0.00027977,2]
[325377401,1714780240381,-11413.58358067,0.00027977,2]
[325377403,1714780240391,-19518.60027249,0.00027977,2]
[325377405,1714780240400,-3083.19521143,0.00027977,2]
[325377407,1714780240409,-3002.52973088,0.00027977,2]
[325377409,1714780240418,-3416.05573349,0.00027977,2]
[325377411,1714780240428,-17686.11973703,0.00027977,2]
[325377412,1714780240437,-6755.06434201,0.00027977,2]
[325377414,1714780240446,-559.09735674,0.00027977,2]
[325377416,1714780240456,-700.0,0.00028,3]
[325377418,1714780240465,-157.37668201,0.00028288,2]
[325377419,1714780240474,-214.0,0.00028842,2]
[325377420,1714780240483,-300.0,0.00028941,2]